{"text_format":"3","workbook":"xlsx","n_sheets":1,"sheets":["Költségelszámolás"],"not_rendered":{"images":2,"defined_names":12},"read":"whole","date_system":"1900"}

{"sheet":"Költségelszámolás","index":0,"n_rows":24,"n_cols":13,"rows_kept":24,"merged":[[3,2,3,3],[3,5,3,6],[3,9,3,10],[4,2,4,3],[4,5,4,6],[4,9,4,10],[5,2,5,3],[5,5,5,6],[5,9,5,10],[6,2,6,3],[6,5,6,6],[6,9,6,10],[7,9,7,10]]}
[null,"KÖLTSÉGELSZÁMOLÁS"]
[null,"CONTOSO, LTD."]
[null,"1000 Budapest, Fő utca 1234."]
[null,"TELEFONSZÁM",4255550121,null,"NÉV","Gyenes Izabella",null,null,"UTAZÁS CÉLJA","Éves értékesítési szeminárium",null,"KILOMÉTERDÍJ",{"v":100,"d":"100.00 Ft/km"}]
[null,"FAX",4255550122,null,"RÉSZLEG","Értékesítés",null,null,"KEZDŐ DÁTUM",{"$f":"IFERROR(MIN(Költségek[DÁTUM]),\"\")","v":"2018-06-04"},null,"ÉTKEZÉSI NAPIDÍJ",{"v":6000,"d":"6,000.00 Ft/nap"}]
[null,"E-MAIL-CÍM","info@contoso.com",null,"POZÍCIÓ","Ügyvezető igazgató",null,null,"ZÁRÓ DÁTUM",{"$f":"IFERROR(MAX(Költségek[DÁTUM]),\"\")","v":"2018-07-04"},null,"SZÁLLÁS NAPIDÍJA",{"v":40000,"d":"40,000.00 Ft/éj"}]
[null,"WEB","www.contoso.com",null,"FELETTES","Fodor Mihály",null,null,"ELŐKÉSZÍTETTE","Gyenes Izabella",null,"TELEFON NAPIDÍJA",{"v":2000,"d":"2,000.00 Ft/nap"}]
[{"$nulls":8},"JÓVÁHAGYTA","Fodor Mihály",null,"EGYÉB NAPIDÍJ",{"v":10000,"d":"10,000.00 Ft/nap"}]
[]
[null,"DÁTUM","SZÁMLA","LEÍRÁS","SZÁLLÁS","KÖZLEKEDÉS","ÉTKEZÉSEK","TELEFONSZÁM","EGYÉB","KILOMÉTER-SZÁMLÁLÓ \nKEZDŐ ÁLLÁSA","KILOMÉTER-SZÁMLÁLÓ \nZÁRÓ ÁLLÁSA","KILOMÉTER \nÖSSZESEN","VÉGÖSSZEG "]
[null,{"$f":"TODAY()","v":"2018-06-04"},"Értékesítés","Távolság",{"$nulls":4},{"v":10000,"d":"10,000.00 Ft"},{"v":11378.5,"d":"11,378.5 km"},{"v":11456.2,"d":"11,456.2 km"},{"$f":"IF(COUNTA(Költségek[[#This Row],[KILOMÉTER-SZÁMLÁLÓ \nKEZDŐ ÁLLÁSA]:[KILOMÉTER-SZÁMLÁLÓ \nZÁRÓ ÁLLÁSA]])=2,(Költségek[[#This Row],[KILOMÉTER-SZÁMLÁLÓ \nZÁRÓ ÁLLÁSA]]-Költségek[[#This Row],[KILOMÉTER-SZÁMLÁLÓ \nKEZDŐ ÁLLÁSA]])*KmDíj,\"\")","v":{"v":7770.000000000073,"d":"7,770.00 Ft"}},{"$f":"IF(COUNTA(Költségek[[#This Row],[DÁTUM]:[KILOMÉTER-SZÁMLÁLÓ \nZÁRÓ ÁLLÁSA]])=0,\"\",SUM(Költségek[[#This Row],[SZÁLLÁS]:[KÖZLEKEDÉS]],Költségek[[#This Row],[ÉTKEZÉSEK]:[EGYÉB]],((Költségek[[#This Row],[KILOMÉTER-SZÁMLÁLÓ \nZÁRÓ ÁLLÁSA]]-Költségek[[#This Row],[KILOMÉTER-SZÁMLÁLÓ \nKEZDŐ ÁLLÁSA]])*(KmDíj))))","v":{"v":17770.000000000073,"d":"17,770.00 Ft"}}]
[null,{"$f":"TODAY()+30","v":"2018-07-04"},"Értékesítés","Járulékos költségek",{"v":89000,"d":"89,000.00 Ft"},{"v":45000,"d":"45,000.00 Ft"},{"v":4000,"d":"4,000.00 Ft"},null,{"v":1000,"d":"1,000.00 Ft"},{"v":11500,"d":"11,500.0 km"},{"v":11560,"d":"11,560.0 km"},{"$f":"IF(COUNTA(Költségek[[#This Row],[KILOMÉTER-SZÁMLÁLÓ \nKEZDŐ ÁLLÁSA]:[KILOMÉTER-SZÁMLÁLÓ \nZÁRÓ ÁLLÁSA]])=2,(Költségek[[#This Row],[KILOMÉTER-SZÁMLÁLÓ \nZÁRÓ ÁLLÁSA]]-Költségek[[#This Row],[KILOMÉTER-SZÁMLÁLÓ \nKEZDŐ ÁLLÁSA]])*KmDíj,\"\")","v":{"v":6000,"d":"6,000.00 Ft"}},{"$f":"IF(COUNTA(Költségek[[#This Row],[DÁTUM]:[KILOMÉTER-SZÁMLÁLÓ \nZÁRÓ ÁLLÁSA]])=0,\"\",SUM(Költségek[[#This Row],[SZÁLLÁS]:[KÖZLEKEDÉS]],Költségek[[#This Row],[ÉTKEZÉSEK]:[EGYÉB]],((Költségek[[#This Row],[KILOMÉTER-SZÁMLÁLÓ \nZÁRÓ ÁLLÁSA]]-Költségek[[#This Row],[KILOMÉTER-SZÁMLÁLÓ \nKEZDŐ ÁLLÁSA]])*(KmDíj))))","v":{"v":145000,"d":"145,000.00 Ft"}}]
[{"$nulls":11},{"$f":"IF(COUNTA(Költségek[[#This Row],[KILOMÉTER-SZÁMLÁLÓ \nKEZDŐ ÁLLÁSA]:[KILOMÉTER-SZÁMLÁLÓ \nZÁRÓ ÁLLÁSA]])=2,(Költségek[[#This Row],[KILOMÉTER-SZÁMLÁLÓ \nZÁRÓ ÁLLÁSA]]-Költségek[[#This Row],[KILOMÉTER-SZÁMLÁLÓ \nKEZDŐ ÁLLÁSA]])*KmDíj,\"\")","v":""},{"$f":"IF(COUNTA(Költségek[[#This Row],[DÁTUM]:[KILOMÉTER-SZÁMLÁLÓ \nZÁRÓ ÁLLÁSA]])=0,\"\",SUM(Költségek[[#This Row],[SZÁLLÁS]:[KÖZLEKEDÉS]],Költségek[[#This Row],[ÉTKEZÉSEK]:[EGYÉB]],((Költségek[[#This Row],[KILOMÉTER-SZÁMLÁLÓ \nZÁRÓ ÁLLÁSA]]-Költségek[[#This Row],[KILOMÉTER-SZÁMLÁLÓ \nKEZDŐ ÁLLÁSA]])*(KmDíj))))","v":""}]
[{"$nulls":11},{"$f":"IF(COUNTA(Költségek[[#This Row],[KILOMÉTER-SZÁMLÁLÓ \nKEZDŐ ÁLLÁSA]:[KILOMÉTER-SZÁMLÁLÓ \nZÁRÓ ÁLLÁSA]])=2,(Költségek[[#This Row],[KILOMÉTER-SZÁMLÁLÓ \nZÁRÓ ÁLLÁSA]]-Költségek[[#This Row],[KILOMÉTER-SZÁMLÁLÓ \nKEZDŐ ÁLLÁSA]])*KmDíj,\"\")","v":""},{"$f":"IF(COUNTA(Költségek[[#This Row],[DÁTUM]:[KILOMÉTER-SZÁMLÁLÓ \nZÁRÓ ÁLLÁSA]])=0,\"\",SUM(Költségek[[#This Row],[SZÁLLÁS]:[KÖZLEKEDÉS]],Költségek[[#This Row],[ÉTKEZÉSEK]:[EGYÉB]],((Költségek[[#This Row],[KILOMÉTER-SZÁMLÁLÓ \nZÁRÓ ÁLLÁSA]]-Költségek[[#This Row],[KILOMÉTER-SZÁMLÁLÓ \nKEZDŐ ÁLLÁSA]])*(KmDíj))))","v":""}]
[{"$nulls":11},{"$f":"IF(COUNTA(Költségek[[#This Row],[KILOMÉTER-SZÁMLÁLÓ \nKEZDŐ ÁLLÁSA]:[KILOMÉTER-SZÁMLÁLÓ \nZÁRÓ ÁLLÁSA]])=2,(Költségek[[#This Row],[KILOMÉTER-SZÁMLÁLÓ \nZÁRÓ ÁLLÁSA]]-Költségek[[#This Row],[KILOMÉTER-SZÁMLÁLÓ \nKEZDŐ ÁLLÁSA]])*KmDíj,\"\")","v":""},{"$f":"IF(COUNTA(Költségek[[#This Row],[DÁTUM]:[KILOMÉTER-SZÁMLÁLÓ \nZÁRÓ ÁLLÁSA]])=0,\"\",SUM(Költségek[[#This Row],[SZÁLLÁS]:[KÖZLEKEDÉS]],Költségek[[#This Row],[ÉTKEZÉSEK]:[EGYÉB]],((Költségek[[#This Row],[KILOMÉTER-SZÁMLÁLÓ \nZÁRÓ ÁLLÁSA]]-Költségek[[#This Row],[KILOMÉTER-SZÁMLÁLÓ \nKEZDŐ ÁLLÁSA]])*(KmDíj))))","v":""}]
[{"$nulls":11},{"$f":"IF(COUNTA(Költségek[[#This Row],[KILOMÉTER-SZÁMLÁLÓ \nKEZDŐ ÁLLÁSA]:[KILOMÉTER-SZÁMLÁLÓ \nZÁRÓ ÁLLÁSA]])=2,(Költségek[[#This Row],[KILOMÉTER-SZÁMLÁLÓ \nZÁRÓ ÁLLÁSA]]-Költségek[[#This Row],[KILOMÉTER-SZÁMLÁLÓ \nKEZDŐ ÁLLÁSA]])*KmDíj,\"\")","v":""},{"$f":"IF(COUNTA(Költségek[[#This Row],[DÁTUM]:[KILOMÉTER-SZÁMLÁLÓ \nZÁRÓ ÁLLÁSA]])=0,\"\",SUM(Költségek[[#This Row],[SZÁLLÁS]:[KÖZLEKEDÉS]],Költségek[[#This Row],[ÉTKEZÉSEK]:[EGYÉB]],((Költségek[[#This Row],[KILOMÉTER-SZÁMLÁLÓ \nZÁRÓ ÁLLÁSA]]-Költségek[[#This Row],[KILOMÉTER-SZÁMLÁLÓ \nKEZDŐ ÁLLÁSA]])*(KmDíj))))","v":""}]
[{"$nulls":11},{"$f":"IF(COUNTA(Költségek[[#This Row],[KILOMÉTER-SZÁMLÁLÓ \nKEZDŐ ÁLLÁSA]:[KILOMÉTER-SZÁMLÁLÓ \nZÁRÓ ÁLLÁSA]])=2,(Költségek[[#This Row],[KILOMÉTER-SZÁMLÁLÓ \nZÁRÓ ÁLLÁSA]]-Költségek[[#This Row],[KILOMÉTER-SZÁMLÁLÓ \nKEZDŐ ÁLLÁSA]])*KmDíj,\"\")","v":""},{"$f":"IF(COUNTA(Költségek[[#This Row],[DÁTUM]:[KILOMÉTER-SZÁMLÁLÓ \nZÁRÓ ÁLLÁSA]])=0,\"\",SUM(Költségek[[#This Row],[SZÁLLÁS]:[KÖZLEKEDÉS]],Költségek[[#This Row],[ÉTKEZÉSEK]:[EGYÉB]],((Költségek[[#This Row],[KILOMÉTER-SZÁMLÁLÓ \nZÁRÓ ÁLLÁSA]]-Költségek[[#This Row],[KILOMÉTER-SZÁMLÁLÓ \nKEZDŐ ÁLLÁSA]])*(KmDíj))))","v":""}]
[{"$nulls":11},{"$f":"IF(COUNTA(Költségek[[#This Row],[KILOMÉTER-SZÁMLÁLÓ \nKEZDŐ ÁLLÁSA]:[KILOMÉTER-SZÁMLÁLÓ \nZÁRÓ ÁLLÁSA]])=2,(Költségek[[#This Row],[KILOMÉTER-SZÁMLÁLÓ \nZÁRÓ ÁLLÁSA]]-Költségek[[#This Row],[KILOMÉTER-SZÁMLÁLÓ \nKEZDŐ ÁLLÁSA]])*KmDíj,\"\")","v":""},{"$f":"IF(COUNTA(Költségek[[#This Row],[DÁTUM]:[KILOMÉTER-SZÁMLÁLÓ \nZÁRÓ ÁLLÁSA]])=0,\"\",SUM(Költségek[[#This Row],[SZÁLLÁS]:[KÖZLEKEDÉS]],Költségek[[#This Row],[ÉTKEZÉSEK]:[EGYÉB]],((Költségek[[#This Row],[KILOMÉTER-SZÁMLÁLÓ \nZÁRÓ ÁLLÁSA]]-Költségek[[#This Row],[KILOMÉTER-SZÁMLÁLÓ \nKEZDŐ ÁLLÁSA]])*(KmDíj))))","v":""}]
[{"$nulls":11},{"$f":"IF(COUNTA(Költségek[[#This Row],[KILOMÉTER-SZÁMLÁLÓ \nKEZDŐ ÁLLÁSA]:[KILOMÉTER-SZÁMLÁLÓ \nZÁRÓ ÁLLÁSA]])=2,(Költségek[[#This Row],[KILOMÉTER-SZÁMLÁLÓ \nZÁRÓ ÁLLÁSA]]-Költségek[[#This Row],[KILOMÉTER-SZÁMLÁLÓ \nKEZDŐ ÁLLÁSA]])*KmDíj,\"\")","v":""},{"$f":"IF(COUNTA(Költségek[[#This Row],[DÁTUM]:[KILOMÉTER-SZÁMLÁLÓ \nZÁRÓ ÁLLÁSA]])=0,\"\",SUM(Költségek[[#This Row],[SZÁLLÁS]:[KÖZLEKEDÉS]],Költségek[[#This Row],[ÉTKEZÉSEK]:[EGYÉB]],((Költségek[[#This Row],[KILOMÉTER-SZÁMLÁLÓ \nZÁRÓ ÁLLÁSA]]-Költségek[[#This Row],[KILOMÉTER-SZÁMLÁLÓ \nKEZDŐ ÁLLÁSA]])*(KmDíj))))","v":""}]
[{"$nulls":11},{"$f":"IF(COUNTA(Költségek[[#This Row],[KILOMÉTER-SZÁMLÁLÓ \nKEZDŐ ÁLLÁSA]:[KILOMÉTER-SZÁMLÁLÓ \nZÁRÓ ÁLLÁSA]])=2,(Költségek[[#This Row],[KILOMÉTER-SZÁMLÁLÓ \nZÁRÓ ÁLLÁSA]]-Költségek[[#This Row],[KILOMÉTER-SZÁMLÁLÓ \nKEZDŐ ÁLLÁSA]])*KmDíj,\"\")","v":""},{"$f":"IF(COUNTA(Költségek[[#This Row],[DÁTUM]:[KILOMÉTER-SZÁMLÁLÓ \nZÁRÓ ÁLLÁSA]])=0,\"\",SUM(Költségek[[#This Row],[SZÁLLÁS]:[KÖZLEKEDÉS]],Költségek[[#This Row],[ÉTKEZÉSEK]:[EGYÉB]],((Költségek[[#This Row],[KILOMÉTER-SZÁMLÁLÓ \nZÁRÓ ÁLLÁSA]]-Költségek[[#This Row],[KILOMÉTER-SZÁMLÁLÓ \nKEZDŐ ÁLLÁSA]])*(KmDíj))))","v":""}]
[{"$nulls":11},{"$f":"IF(COUNTA(Költségek[[#This Row],[KILOMÉTER-SZÁMLÁLÓ \nKEZDŐ ÁLLÁSA]:[KILOMÉTER-SZÁMLÁLÓ \nZÁRÓ ÁLLÁSA]])=2,(Költségek[[#This Row],[KILOMÉTER-SZÁMLÁLÓ \nZÁRÓ ÁLLÁSA]]-Költségek[[#This Row],[KILOMÉTER-SZÁMLÁLÓ \nKEZDŐ ÁLLÁSA]])*KmDíj,\"\")","v":""},{"$f":"IF(COUNTA(Költségek[[#This Row],[DÁTUM]:[KILOMÉTER-SZÁMLÁLÓ \nZÁRÓ ÁLLÁSA]])=0,\"\",SUM(Költségek[[#This Row],[SZÁLLÁS]:[KÖZLEKEDÉS]],Költségek[[#This Row],[ÉTKEZÉSEK]:[EGYÉB]],((Költségek[[#This Row],[KILOMÉTER-SZÁMLÁLÓ \nZÁRÓ ÁLLÁSA]]-Költségek[[#This Row],[KILOMÉTER-SZÁMLÁLÓ \nKEZDŐ ÁLLÁSA]])*(KmDíj))))","v":""}]
[null,"ÖSSZESEN",null,null,{"$f":"SUBTOTAL(109,Költségek[SZÁLLÁS])","v":{"v":89000,"d":"89,000.00 Ft"}},{"$f":"SUBTOTAL(109,Költségek[KÖZLEKEDÉS])","v":{"v":45000,"d":"45,000.00 Ft"}},{"$f":"SUBTOTAL(109,Költségek[ÉTKEZÉSEK])","v":{"v":4000,"d":"4,000.00 Ft"}},{"$f":"SUBTOTAL(109,Költségek[TELEFONSZÁM])","v":0},{"$f":"SUBTOTAL(109,Költségek[EGYÉB])","v":{"v":11000,"d":"11,000.00 Ft"}},{"$nulls":3},{"$f":"SUBTOTAL(109,Költségek[[VÉGÖSSZEG ]])","v":{"v":162770.00000000006,"d":"162,770.00 Ft"}}]
[{"$nulls":11},"ELŐLEGEK",{"v":0,"d":"0.00 Ft"}]
[{"$nulls":11},"VÉGÖSSZEG",{"$f":"Költségek[[#Totals],[VÉGÖSSZEG ]]-Előlegek","v":{"v":162770.00000000006,"d":"162,770.00 Ft"}}]